Cogmind - Beta 16 --- EXPLORER MODE // 2026.01.01 @ 10:06:57 Player: K.K.Y. Result: Destroyed by 44-VRG(R) with Subdweller Laser Performance ------------- Evolutions (0) 0 Regions Visited (3) 600 Robots Destroyed (34) 170 Value Destroyed (717) 717 Prototype IDs (14) 280 Alien Tech Used (0) 0 Bonus (-33) -33 TOTAL SCORE: 1734 Bonus ------- Friendly Fire -33 Cogmind --------- Core Integrity 0/250 Matter 253/300 Energy 239/250 System Corruption 0% Temperature Cool (6) Movement Rolling (110) Ox2 Location -10/Subcaves Parts ------- > --- POWER (1) -------- Ion Engine > --- PROPULSION (2) --- Wheel > --- UTILITY (3) ------ Medium Storage Unit Structural Scanner Makeshift Light Armor Plating > --- WEAPON (2) ------- Mining Laser > --- INVENTORY (10) --- Light Nuclear Core Improved Heat Sink Machine Analyzer Experimental Sensor Array Improved Terrain Scanner ECM Suite ECM Suite ECM Suite Light Armor Plating Peak State ------------ > --- POWER ------------ Ion Engine > --- PROPULSION ------- Wheel Wheel > --- UTILITY ---------- Medium Storage Unit Structural Scanner Makeshift Light Armor Plating > --- WEAPON ----------- Battle Rifle Battle Cannon > --- INVENTORY -------- Light Nuclear Core Improved Heat Sink Machine Analyzer Experimental Sensor Array Improved Terrain Scanner ECM Suite ECM Suite ECM Suite Light Armor Plating Mining Laser [Rating: 15] Favorites ----------- Power Ion Engine Engine Ion Engine Propulsion Light Treads Treads Light Treads Wheel Wheel Utility Medium Storage Unit Device ECM Suite Storage Medium Storage Unit Protection Light Armor Plating Weapon Light Assault Rifle Energy Gun Subdweller Laser Energy Cannon Subdweller Beam Cannon Ballistic Gun Light Assault Rifle Ballistic Cannon Battle Cannon Special Weapon Mining Laser Build | -11 -10 -10 -10 ------- Run | Yrd Mat Min Sub Slots Evolved 1 | . 1 . . Power . | . . . . Propulsion . | . . . . Utility 1 | . 1 . . Weapon . | . . . . Parts Attached 24 | 7 3 1 13 Power 2 | 1 1 . . Engine 2 | 1 1 . . Core . | . . . . Reactor . | . . . . Propulsion 5 | 2 . . 3 Treads 2 | 2 . . . Leg . | . . . . Wheel 3 | . . . 3 Hover . | . . . . Flight . | . . . . Utility 6 | 2 2 . 2 Device 3 | 1 2 . . Storage 1 | 1 . . . Processor . | . . . . Hackware . | . . . . Protection 2 | . . . 2 Artifact . | . . . . Weapon 11 | 2 . 1 8 Energy Gun 2 | . . . 2 Energy Cannon 1 | . . . 1 Ballistic Gun 6 | 2 . 1 3 Ballistic Cannon 1 | . . . 1 Launcher . | . . . . Special Weapon 1 | . . . 1 Impact Weapon . | . . . . Slashing Weapon . | . . . . Piercing Weapon . | . . . . Special Melee Weapon . | . . . . Unidentified Prototypes . | . . . . Parts Lost 5 | . . . 5 Power . | . . . . Propulsion 3 | . . . 3 Utility . | . . . . Weapon 2 | . . . 2 Highest Loss Streak 3 | . . . 3 To Critical Strikes . | . . . . Average Backups 9 | . 6 9 9 Power . | . . 1 1 Propulsion . | . . . . Utility 7 | . 5 7 7 Weapon . | . 1 1 . Tool/Special . | . . . . Unused Backups 10 | 1 . . 9 Power 2 | 1 . . 1 Propulsion . | . . . . Utility 8 | . . . 8 Weapon . | . . . . Tool/Special . | . . . . Average Slot Usage (%) 93 | . 88 100 92 Engine 12 | . 12 12 12 Treads 18 | . 25 25 13 Wheel 2 | . . . 4 Device 20 | . 13 25 20 Storage 12 | . 12 12 12 Protection 2 | . . . 3 Ballistic Gun 17 | . 25 25 11 Ballistic Cannon 4 | . . . 8 Peak Build Rating 15 | 7 9 10 15 Average Rating 10 | 5 7 9 11 On Entrance 6 | . 7 9 10 Avg Prop Armor Cover (%) . | . . . . Naked Turns . | . . . . Heaviest Build 30 | 19 20 20 30 Greatest Support 40 | 40 40 40 40 Greatest Overweight (x) 7 | . . . 7 Average Overweight (x) . | . . . 1 Largest Inventory Capacity 10 | 10 10 10 10 Average Capacity 9 | 8 10 10 10 Most Carried 10 | 5 10 10 10 Average Carried 9 | . 6 9 9 Final Capacity 10 | 10 10 10 10 Final Carried 10 | 2 9 10 9 Class Distribution -------------------- 100% | Hacker-Mutant Dominant Class ---------------- Hacker-Mutant | -10/Materials Hacker-Mutant | -10/Mines Hacker-Mutant | -10/Subcaves Resources | -11 -10 -10 -10 ----------- Run | Yrd Mat Min Sub Matter Collected 775 | 278 122 18 357 Remotely . | . . . . Salvage Created 1184 | 115 667 42 360 Parts 89 | 6 39 7 37 Haulers Intercepted 1 | . 1 . . Recyclers Shooed 2 | . 1 1 . Parts Field Recycled . | . . . . Retrieved Matter . | . . . . Parts Self-Destructed . | . . . . Prevented . | . . . . Parts Restored . | . . . . Kills | -11 -10 -10 -10 ------- Run | Yrd Mat Min Sub Combat Hostiles Destroyed 21 | . 7 3 11 Guns 16 | . 7 3 6 Cannons 5 | . . . 5 Classes Destroyed 10 | 2 4 1 3 Builder 3 | . 3 . . Tunneler 1 | 1 . . . Hauler 1 | . 1 . . Recycler 3 | 1 2 . . Turret 2 | . . . 2 Watcher 3 | . 3 . . Swarmer 9 | . . 3 6 Grunt 7 | . 7 . . Artisan 2 | . . . 2 Subdweller 5 | . . . 5 Best Kill Streak 6 | 2 6 2 5 Combat Bots Only 4 | . 3 2 4 Max Kills in Single Turn 1 | 1 1 1 1 Gunslinging . | . . . . Exploded . | . . . . Melee . | . . . . Uniques/NPCs Destroyed . | . . . . Combat | -11 -10 -10 -10 -------- Run | Yrd Mat Min Sub Hostile Shots Fired 163 | . 48 5 110 Missed 55 | . 17 3 35 Hits 108 | . 31 2 75 Projectile 108 | . 31 2 75 Critical Strikes 2 | . 1 . 1 Damage Taken 1068 | . 258 8 802 Core 252 | . 34 . 218 Absorbed by Shields . | . . . . Ignored by Resistances 640 | . 163 7 470 Core Remaining (%) 100 | 100 . . . Volleys Fired 115 | 4 46 4 61 Largest 2 | 2 2 2 2 Hottest 140 | 40 40 40 140 Shots Fired 225 | 8 92 8 117 Gun 192 | 8 92 8 84 Cannon 31 | . . . 31 Launcher . | . . . . Special 2 | . . . 2 Kinetic 219 | 8 92 8 111 Thermal 6 | . . . 6 Explosive . | . . . . Electromagnetic . | . . . . Robot Hit Streak 22 | 2 22 12 16 Robot Miss Streak 2 | 1 1 1 2 Penetration Max . | . . . . Secondary Targets 3 | . 2 . 1 Max Gunslinging Chain 1 | . 1 . 1 Shots Hit Robots 176 | 5 79 6 86 Core Hits 73 | 4 40 3 26 Critical Kills 1 | 1 . . . Critical Parts Destroyed 1 | . . 1 . Critical Strikes 3 | 1 . 1 1 Destroy 2 | 1 . 1 . Blast 1 | . . . 1 Melee Attacks . | . . . . Impact . | . . . . Slashing . | . . . . Piercing . | . . . . Sneak Attacks . | . . . . Combat Hostiles . | . . . . Follow-up Attacks . | . . . . Damage Inflicted 1773 | 60 631 54 1028 Guns 1383 | 60 631 48 644 Cannons 384 | . . . 384 Explosions . | . . . . Melee . | . . . . Ramming 6 | . . 6 . Kinetic 1673 | 60 631 48 934 Thermal 94 | . . . 94 Explosive . | . . . . Electromagnetic . | . . . . Impact . | . . . . Slashing . | . . . . Piercing . | . . . . Highest Corruption . | . . . . Average Corruption . | . . . . Corruption Purged . | . . . . Corruption Blocked . | . . . . Overload Shots . | . . . . Overflow Damage . | . . . . Projectiles . | . . . . Explosions . | . . . . Melee . | . . . . Knockbacks 1 | . . . 1 Impact . | . . . . Kinetic 1 | . . . 1 Secondary . | . . . . Self-Inflicted Damage . | . . . . Shots . | . . . . Rammed 1 | . . 1 . Targets Rammed 1 | . . 1 . Kicked . | . . . . Crushed . | . . . . Highest Temperature 59 | . 59 . 18 Average Temperature 16 | . 21 . 6 Received Heat Transfer 627 | . 258 . 369 Siege Activations . | . . . . Martial Activations . | . . . . Shielding Activations . | . . . . Robots Disrupted . | . . . . Combat Hostiles . | . . . . Robots Corrupted . | . . . . Combat Hostiles . | . . . . Parts Fried . | . . . . Impact Corruptions . | . . . . Robots Melted . | . . . . Combat Hostiles . | . . . . Parts Melted 1 | . . . 1 Heat Transferred 124 | . . . 124 Parts Sabotaged . | . . . . Parts Stolen . | . . . . Parts Stripped . | . . . . Power Chain Reactions . | . . . . Alert | -11 -10 -10 -10 ------- Run | Yrd Mat Min Sub Maximum Alert Level . | . . . . Low Security (%) 100 | 100 100 100 . Level 1 . | . . . . Level 2 . | . . . . Level 3 . | . . . . Level 4 . | . . . . Level 5 . | . . . . High Security . | . . . . Max Security . | . . . . Peak Influence 75 | 5 75 35 . Initial . | . . . . Average 6 | 1 13 1 . Influence Increases 473 | 10 223 70 170 Destroy 0b10 Robot/C 360 | . 140 60 160 Destroy 0b10 Robot/NC 55 | 10 45 . . Destroy Leader 58 | . 38 10 10 Influence Decreases 473 | 10 223 70 170 Time Decay 463 | 10 223 70 160 Lost Part 10 | . . . 10 Squads Dispatched . | . . . . Investigation . | . . . . Extermination . | . . . . Reinforcement . | . . . . Assault . | . . . . Garrison . | . . . . Intercept . | . . . . Searches Triggered . | . . . . Construction Impeded . | . . . . Haulers Reinforced . | . . . . Active Scanning Responses . | . . . . Cargo Convoy Interrupts . | . . . . Stealth | -11 -10 -10 -10 --------- Run | Yrd Mat Min Sub Distress Signals 2 | . 2 . . Communications Jammed . | . . . . Distress Signals . | . . . . Times Spotted 47 | . 14 5 28 Peak Tracking Total 5 | . 5 3 5 Tactical Retreats 9 | . 2 4 3 ECM-based Alert Blocks 47 | . 3 5 39 Traps | -11 -10 -10 -10 ------- Run | Yrd Mat Min Sub Traps Triggered 2 | . . . 2 Indirectly . | . . . . Trap Hack Attempts . | . . . . Triggered . | . . . . Disarmed . | . . . . Reprogrammed . | . . . . Reused . | . . . . Traps Extracted . | . . . . Installed . | . . . . Triggered . | . . . . Machines | -11 -10 -10 -10 ---------- Run | Yrd Mat Min Sub Machines Disabled 3 | . . . 3 Max in Single Turn 1 | . . . 1 Machines Repaired . | . . . . Machines Dismantled . | . . . . Machines Sabotaged . | . . . . Overloaded Fab Kills . | . . . . Hacking | -11 -10 -10 -10 --------- Run | Yrd Mat Min Sub Machines Accessed 2 | . 1 . 1 Terminals 1 | . 1 . . Fabricators . | . . . . Repair Stations . | . . . . Recycling Units . | . . . . Scanalyzers . | . . . . Garrison Access . | . . . . Total Hacks 4 | . 3 . 1 Successful 2 | . 1 . 1 Failed 2 | . 2 . . Catastrophic . | . . . . Database Lockouts . | . . . . Manual 3 | . 3 . . Terminals 3 | . 3 . . Fabricators . | . . . . Repair Stations . | . . . . Recycling Units . | . . . . Scanalyzers . | . . . . Garrison Access . | . . . . Terminal Hacks 2 | . 1 . 1 Prototype ID Bank 1 | . 1 . . Proto ID Catalog 1 | . . . 1 Fabricator Hacks . | . . . . Repair Station Hacks . | . . . . Recycling Unit Hacks . | . . . . Scanalyzer . | . . . . Garrison Access Hacks . | . . . . Unauthorized Hacks . | . . . . Terminals . | . . . . Fabricators . | . . . . Repair Stations . | . . . . Recycling Units . | . . . . Scanalyzers . | . . . . Garrison Access . | . . . . Data Cores Recovered . | . . . . Used . | . . . . Hacking Detections 1 | . 1 . . Full Trace Events . | . . . . Feedback Events . | . . . . Feedback Blocked . | . . . . Robot Schematics Acquired . | . . . . Robots Built . | . . . . Authchips . | . . . . Time . | . . . . Total Robot Build Rating . | . . . . Part Schematics Acquired . | . . . . Parts Built . | . . . . Authchips . | . . . . Time . | . . . . Total Part Build Rating . | . . . . Part Studies Acquired . | . . . . Parts Repaired . | . . . . Time . | . . . . Parts Recycled . | . . . . Recycled Matter . | . . . . Retrieved Matter . | . . . . Retrieved Components . | . . . . Parts Scanalyzed . | . . . . Part Schematics Acquired . | . . . . Parts Damaged . | . . . . Bothacking | -11 -10 -10 -10 ------------ Run | Yrd Mat Min Sub Used RIF Installer . | . . . . Robots Hacked . | . . . . Non-combat . | . . . . Combat . | . . . . Robot Hacks Applied . | . . . . Relay Couplers Released . | . . . . Fabnet Peak Effective % . | . . . . Robots Rewired . | . . . . Allies Hacked . | . . . . Hacks Repelled . | . . . . Allies | -11 -10 -10 -10 -------- Run | Yrd Mat Min Sub Total Allies . | . . . . Largest Group . | . . . . Highest-Rated Group . | . . . . Highest-Rated Ally . | . . . . Total Orders . | . . . . Ally Attacks . | . . . . Total Damage . | . . . . Kills . | . . . . Allies Corrupted . | . . . . Allies Melted . | . . . . Intel | -11 -10 -10 -10 ------- Run | Yrd Mat Min Sub Active Infowar (turns) 3585 | 66 704 920 1895 Structural 2890 | . 75 920 1895 ECM 2985 | 66 704 920 1295 Robot Analysis Total . | . . . . Derelict Logs Recovered 2 | . . 1 1 Drone Launches . | . . . . Drone Recoveries . | . . . . Exploration | -11 -10 -10 -10 ------------- Run | Yrd Mat Min Sub Turns Passed 3602 | 83 704 920 1895 Spaces Moved 1928 | 47 351 543 987 Core 142 | 17 . . 125 Treads 1448 | 30 351 543 524 Legs . | . . . . Wheels 338 | . . . 338 Hover . | . . . . Flight . | . . . . Fastest Speed 50 | 50 160 160 95 Average Speed 163 | 120 160 160 168 Slowest Speed 400 | 160 160 160 400 Overloaded Moves . | . . . . Propulsion Burnouts . | . . . . Robots Hopped . | . . . . Potential Cave-ins . | . . . . Cave-ins Triggered . | . . . . Exploration Rate (%) 52 | 4 65 95 46 Regions Visited 3 Branch Regions 2 Pre-discovered Areas 2 | . . 2 . Known Exits Taken 3 | 1 1 1 . Unknown Exits Taken . | . . . . Scrap Searched 12 | . . 1 11 Spaces Dug . | . . . . Terrain Destroyed . | . . . . Melee . | . . . . Projectile . | . . . . AOE . | . . . . Terrain Rammed . | . . . . Walls Destroyed . | . . . . Machines Disabled . | . . . . Actions | -11 -10 -10 -10 --------- Run | Yrd Mat Min Sub Total 2187 | 67 420 588 1112 Wait 76 | . 10 38 28 Move 1925 | 46 350 542 987 Hop . | . . . . Pick Up 25 | 9 9 1 6 Fast Attach 9 | 1 . . 8 Attach 10 | 6 2 . 2 Detach 1 | . 1 . . Swap 7 | . 1 1 5 Drop 18 | 1 1 1 15 Fire 115 | 4 46 4 61 Melee . | . . . . Ram . | . . . . Kick . | . . . . Crush 1 | . . 1 . Escape Stasis . | . . . . Rewire . | . . . . Trap . | . . . . Miscellaneous . | . . . . Route ------- -11/Scrapyard -10/Materials (discovered 3 exits: *Mat / *Min / *Sub) -10/Mines (discovered 3 exits: *Mat x2 / *Sub) -10/Subcaves (discovered 2 exits: *Mat / *Rec) History --------- Turn | Location | Event 5 | -11/Scrapyard | Identified exit to Materials 5 | -11/Scrapyard | Discovered exit to Materials (range 15) 84 | -11/Scrapyard | Entered Materials 84 | -10/Materials | Evolved 1 slot: Utility x1 217 | -10/Materials | Identified exit to Mines 217 | -10/Materials | Discovered exit to Mines (range 16) 313 | -10/Materials | Build established: Hacker-Mutant 603 | -10/Materials | Identified exit to Subcaves 603 | -10/Materials | Discovered exit to Subcaves (range 9) 608 | -10/Materials | Identified exit to Materials 608 | -10/Materials | Discovered exit to Materials (range 5) 788 | -10/Materials | Entered Mines 789 | -10/Mines | Learned location of Storage (-7) 807 | -10/Mines | Received a Rocket Launcher from a helpful Derelict 882 | -10/Mines | Discovered exit to Materials (range 9) 944 | -10/Mines | Discovered exit to Subcaves (range 10) 995 | -10/Mines | Found a damaged Exp. Sensor Array with a note attached 998 | -10/Mines | Found Prototype Device 1023 | -10/Mines | Discovered exit to Materials (range 6) 1027 | -10/Mines | Learned location of Zion (-6) 1708 | -10/Mines | Entered Subcaves 1709 | -10/Subcaves | Approached by a straggling Scientist 1767 | -10/Subcaves | Learned Materials stockpile data 2036 | -10/Subcaves | Identified exit to Materials 2036 | -10/Subcaves | Discovered exit to Materials (range 12) 2123 | -10/Subcaves | Disturbed a concealed Subdweller 2412 | -10/Subcaves | Visited 4L-MR0's lab 2429 | -10/Subcaves | Found Tower Shield 2736 | -10/Subcaves | Identified exit to Recycling 2736 | -10/Subcaves | Discovered exit to Recycling (range 14) 3570 | -10/Subcaves | Core integrity fell below 50% 3593 | -10/Subcaves | A swath of the cavern ceiling suddenly collapsed 3600 | -10/Subcaves | Core integrity fell below 20% 3603 | -10/Subcaves | Destroyed by 44-VRG(R) with Subdweller Laser Last Messages --------------- 03469_ Dropped Lgt. Armor Plating. 03505_ Triggered Piercing Trap. 03505_ Spikes shoot up from the floor. 03505_ Critical hit (Impale). 03513_ Triggered Shrapnel Trap. 03513_ An expanding cloud of shrapnel blasts out in all directions. 03567_ T6-IFN(R) emerges from the Twisted Machinery. 03567_ Acquired 10 matter. 03569_ Acquired 3 matter. 03580_ Battle Rifle destroyed. 03586_ Wheel destroyed. 03587_ 44-VRG(R) knocked back. 03588_ Battle Cannon destroyed. 03593_ 6 Matter crushed. 03593_ 9 Matter crushed. 03593_ 3 Matter crushed. A swath of the cavern ceiling suddenly collapses. Map ----- +----------------------------------------------------+ | ###???????????????????????????????????????????? | | ? ###??????????????????????????????????????????? | | ##??????????????????????????????????????????? | | # ##??????????????????????????????????????????? | | #??????????????????????????????????????????? | | ?????????????????????????????????????????????? | | ?????????????????????????????????????????????? | | ###????????????????????????????????????????????? | | #####??????????????????????????????????????????? | | ####??????????????????????????????????????????? | | ##??????????????????????????????????????????? | | ##??????????????????????????????????????????? | | % ##??????????????????? ??????????????????????? | | ##??????????????????? #????????????????????? | | ##?????????????????? ###???????????????????? | | ####????###?????????? ####??? ????????????? | | ######??## ?????????? ###??? ##????????????? | | ### ????????? ##?? ##????????????? | | ##?????????"" ## ###????????????? | | ##??????### "" ## ##?????????????? | | ##??????### ?????????????? | | ## ## ###??????## ????????????????? | | ######## ""###????####"## "##??????????????????? | | ####### "###????#######%"###??????????????????? | | ###???### ######### R##""##??????????????????? | | ##???### #########"" @"#"##??????????????????? | | ##???### ## ## # ####"##??????????????????? | | ##???## "##""##???###????????????? | | ###???### ###? ##??? ##????????????? | | ####??####### ##" ### ?? ????????????? | | ############# ### ## ## ????????????? | | ###### ????????????? | | % ????????????? | | ### # #### # ## ??????????????? | | ### ############# ######??????????????? | | # ## ########?##### ######???????????????? | | #########???????????? ###??????????????????? | | ########????????????? ##???????????????????? | | ## ###?????????????????????????????????????????? | | ########?????????????????????????????????????????? | | #######??????????????????????????????????????????? | | ?????????????????????????????????????????????????? | | ?????????????????????????????????????????????????? | | ?????????????????????????????????????????????????? | | ?????????????????????????????????????????????????? | | ?????????????????????????????????????????????????? | | ?????????????????????????????????????????????????? | | ?????????????????????????????????????????????????? | | ?????????????????????????????????????????????????? | | ?????????????????????????????????????????????????? | +----------------------------------------------------+ Best States ------------- Heat Dissipation 25 Energy Generation 10 Energy Capacity 250 Matter Stores 300 Matter Capacity 300 Sight Range 16 Terrain Scan Density 10 ECM Strength 2 Armor Coverage 150 Resistance: KI 35 Resistance: TH 35 Resistance: EX 35 Resistance: EM 35 Resistance: I 35 Resistance: S 35 Resistance: P 35 Evasion (%) 50 Recoil Reduction 2 Offensive Hacking 20 Item Schematics ----------------- None Robot Schematics ------------------ None Fabricated ------------ Nothing Repaired ---------- Nothing Studied --------- None Alien Tech Used ----------------- None Achievements -------------- None Challenges ------------ None Game ------ Seed FactorySchematicBrace Manual? 0 Play Time 00:15:13 Cumulative 235.3 hours Start 2026.01.01 @ 09:53:55 End 2026.01.01 @ 10:06:57 Sessions 1 Manual Loads 0 Difficulty Explorer Special Mode None Game No. 372 Rogue 0 Adventurer 0 Explorer 372 Win Type - Total 0 Types 0/0/0/0/0/0/0/0/0/0 Lore% 71 Gallery% 68 Achievement% 54 Wizard Run 0 Options --------- Layout 1 ASCII 0 Keyboard 0 Movement Mouse Keybinds 0 Fullscreen 1 Font 24/Smallcaps Map View 50x35 Zoom Use 0% Tactical HUD 1 Map Filters NONE Filters NONE Steam 1 RUN: f00f05f1-6a50-42b0-8d37-e37a9c2af110